[Event "Live Chess"]
[Site "Chess.com"]
[Date "2023.05.20"]
[Round "-"]
[White "ameetghasi100"]
[Black "thrithik"]
[Result "1-0"]
[WhiteElo "2711"]
[BlackElo "384"]
[TimeControl "300"]
[EndTime "12:24:38 PDT"]
[Termination "ameetghasi100 won by checkmate"]

1. d4 {[%clk 0:04:58.8]} 1... d5 {[%clk 0:04:58.9]} 2. c4 {[%clk 0:04:57.5]}
2... c6 {[%clk 0:04:55.7]} 3. Nc3 {[%clk 0:04:57.4]} 3... b6 {[%clk 0:04:53]} 4.
Nf3 {[%clk 0:04:57.3]} 4... a6 {[%clk 0:04:50.9]} 5. e4 {[%clk 0:04:56.9]} 5...
Nd7 {[%clk 0:04:48.9]} 6. e5 {[%clk 0:04:53.9]} 6... e6 {[%clk 0:04:48.5]} 7. h4
{[%clk 0:04:52.3]} 7... f6 {[%clk 0:04:47.4]} 8. h5 {[%clk 0:04:49.9]} 8... g6
{[%clk 0:04:46]} 9. hxg6 {[%clk 0:04:48.4]} 9... hxg6 {[%clk 0:04:44.5]} 10.
Rxh8 {[%clk 0:04:48]} 10... Nxe5 {[%clk 0:04:37]} 11. dxe5 {[%clk 0:04:46.5]}
11... fxe5 {[%clk 0:04:35.2]} 12. Rxg8 {[%clk 0:04:45.3]} 12... dxc4 {[%clk
0:04:28.8]} 13. Rxf8+ {[%clk 0:04:43.9]} 13... Ke7 {[%clk 0:04:23.6]} 14. Qxd8#
{[%clk 0:04:43.8]} 1-0

[Event "Live Chess"]
[Site "Chess.com"]
[Date "2023.05.20"]
[Round "-"]
[White "Lukaskonstanta4"]
[Black "Pablo_dmp"]
[Result "0-1"]
[WhiteElo "924"]
[BlackElo "1864"]
[TimeControl "300"]
[EndTime "12:24:53 PDT"]
[Termination "Pablo_dmp won on time"]

1. d4 {[%clk 0:04:45.5]} 1... Nf6 {[%clk 0:04:57]} 2. Nf3 {[%clk 0:04:43.1]}
2... d5 {[%clk 0:04:54.8]} 3. Bf4 {[%clk 0:04:34.6]} 3... c5 {[%clk 0:04:50.6]}
4. dxc5 {[%clk 0:04:30.2]} 4... Bf5 {[%clk 0:04:44.4]} 5. e3 {[%clk 0:04:26.8]}
5... Nc6 {[%clk 0:04:43.1]} 6. a3 {[%clk 0:04:16.8]} 6... e6 {[%clk 0:04:29.8]}
7. Bd3 {[%clk 0:04:08.8]} 7... Bxd3 {[%clk 0:04:27]} 8. Qxd3 {[%clk 0:04:07.1]}
8... Bxc5 {[%clk 0:04:26.7]} 9. Nc3 {[%clk 0:04:03.1]} 9... Rc8 {[%clk
0:04:24.5]} 10. O-O {[%clk 0:03:58.7]} 10... O-O {[%clk 0:04:21.4]} 11. Ne5
{[%clk 0:03:54.1]} 11... Bd6 {[%clk 0:04:11.1]} 12. Nxc6 {[%clk 0:03:45.2]}
12... bxc6 {[%clk 0:04:11]} 13. Bxd6 {[%clk 0:03:40]} 13... Qxd6 {[%clk
0:04:10.9]} 14. Ne2 {[%clk 0:03:38.2]} 14... e5 {[%clk 0:03:57.8]} 15. c4 {[%clk
0:03:02.7]} 15... e4 {[%clk 0:03:48.1]} 16. Qd4 {[%clk 0:02:39.4]} 16... Ng4
{[%clk 0:03:45.9]} 17. Ng3 {[%clk 0:02:33.6]} 17... h5 {[%clk 0:03:43.6]} 18. h3
{[%clk 0:02:30.3]} 18... Nf6 {[%clk 0:03:42.2]} 19. Nf5 {[%clk 0:02:16.6]} 19...
Qd7 {[%clk 0:03:38.1]} 20. Ng3 {[%clk 0:01:59]} 20... h4 {[%clk 0:03:35.4]} 21.
Ne2 {[%clk 0:01:57]} 21... c5 {[%clk 0:03:33.2]} 22. Qc3 {[%clk 0:01:54.4]}
22... Qf5 {[%clk 0:03:24.6]} 23. cxd5 {[%clk 0:01:47.8]} 23... Nxd5 {[%clk
0:03:24.5]} 24. Qc2 {[%clk 0:01:35.7]} 24... Rc6 {[%clk 0:03:20]} 25. Rad1
{[%clk 0:01:21.9]} 25... Rg6 {[%clk 0:03:17.6]} 26. Rxd5 {[%clk 0:01:12.4]}
26... Qxd5 {[%clk 0:03:13.3]} 27. Nf4 {[%clk 0:01:11.3]} 27... Qf5 {[%clk
0:02:57.8]} 28. Nxg6 {[%clk 0:01:09.6]} 28... fxg6 {[%clk 0:02:55.6]} 29. Rd1
{[%clk 0:01:06.2]} 29... c4 {[%clk 0:02:20.6]} 30. Qxc4+ {[%clk 0:01:02.1]}
30... Kh7 {[%clk 0:02:17.5]} 31. Qc2 {[%clk 0:00:59.6]} 31... Rc8 {[%clk
0:02:14.5]} 32. Qd2 {[%clk 0:00:56.1]} 32... Rb8 {[%clk 0:02:06.4]} 33. b4
{[%clk 0:00:54.2]} 33... Rb6 {[%clk 0:02:03.1]} 34. a4 {[%clk 0:00:50.8]} 34...
Rf6 {[%clk 0:01:55.3]} 35. b5 {[%clk 0:00:45.6]} 35... Rf7 {[%clk 0:01:51.9]}
36. Rf1 {[%clk 0:00:38.1]} 36... Kh6 {[%clk 0:01:51]} 37. Qd4 {[%clk 0:00:32.1]}
37... Rd7 {[%clk 0:01:46]} 38. Qc4 {[%clk 0:00:27.3]} 38... Rd3 {[%clk
0:01:44.4]} 39. Qc6 {[%clk 0:00:20.2]} 39... Qf8 {[%clk 0:01:32.5]} 40. b6
{[%clk 0:00:17.3]} 40... axb6 {[%clk 0:01:31]} 41. Qxb6 {[%clk 0:00:15.3]} 41...
Qa3 {[%clk 0:01:29.6]} 42. a5 {[%clk 0:00:12.6]} 42... Rb3 {[%clk 0:01:28.5]}
43. Qd8 {[%clk 0:00:10.3]} 43... g5 {[%clk 0:01:20.7]} 44. Qc7 {[%clk
0:00:05.6]} 44... g6 {[%clk 0:01:19.1]} 0-1

[Event "Live Chess"]
[Site "Chess.com"]
[Date "2023.05.20"]
[Round "-"]
[White "boilerboy1"]
[Black "azimchess2019"]
[Result "0-1"]
[WhiteElo "1050"]
[BlackElo "1374"]
[TimeControl "300"]
[EndTime "12:25:05 PDT"]
[Termination "azimchess2019 won by resignation"]

1. e4 {[%clk 0:04:56.4]} 1... c5 {[%clk 0:04:57.1]} 2. Nc3 {[%clk 0:04:54.4]}
2... d6 {[%clk 0:04:55.8]} 3. Nf3 {[%clk 0:04:52.6]} 3... Nc6 {[%clk 0:04:53.8]}
4. Be2 {[%clk 0:04:50.9]} 4... Nf6 {[%clk 0:04:50.6]} 5. O-O {[%clk 0:04:44.7]}
5... e6 {[%clk 0:04:49.8]} 6. d3 {[%clk 0:04:42.7]} 6... Be7 {[%clk 0:04:49]} 7.
Re1 {[%clk 0:04:40.5]} 7... O-O {[%clk 0:04:45.6]} 8. Be3 {[%clk 0:04:38.7]}
8... d5 {[%clk 0:04:40.5]} 9. exd5 {[%clk 0:04:35.8]} 9... exd5 {[%clk
0:04:33.9]} 10. Bd2 {[%clk 0:04:31.8]} 10... Be6 {[%clk 0:04:30.6]} 11. Ng5
{[%clk 0:04:21.7]} 11... Nd4 {[%clk 0:04:24.2]} 12. Nxe6 {[%clk 0:04:20]} 12...
Nxe6 {[%clk 0:04:24.1]} 13. Bf3 {[%clk 0:04:13.3]} 13... Rb8 {[%clk 0:04:12.5]}
14. a3 {[%clk 0:04:10.8]} 14... Nd4 {[%clk 0:04:03.9]} 15. Bf4 {[%clk
0:04:03.9]} 15... Nxf3+ {[%clk 0:03:57.9]} 16. Qxf3 {[%clk 0:04:01.9]} 16... d4
{[%clk 0:03:56.7]} 17. Bxb8 {[%clk 0:03:58.7]} 17... dxc3 {[%clk 0:03:55.6]} 18.
bxc3 {[%clk 0:03:52.6]} 18... Qxb8 {[%clk 0:03:54]} 19. Rxe7 {[%clk 0:03:49.4]}
19... b6 {[%clk 0:03:51.5]} 20. Rb7 {[%clk 0:03:47.3]} 20... Qe5 {[%clk
0:03:48.4]} 21. h3 {[%clk 0:03:37.7]} 21... Qxc3 {[%clk 0:03:46.7]} 22. Rb1
{[%clk 0:03:28.7]} 22... Qxa3 {[%clk 0:03:41.6]} 23. Re7 {[%clk 0:03:24.7]}
23... c4 {[%clk 0:03:36.6]} 24. dxc4 {[%clk 0:03:17]} 24... Qxe7 {[%clk
0:03:35]} 25. c3 {[%clk 0:03:07.4]} 25... Rc8 {[%clk 0:03:32.8]} 26. Qd3 {[%clk
0:02:44.7]} 26... Qd7 {[%clk 0:03:24.9]} 27. Qxd7 {[%clk 0:02:28.8]} 27... Nxd7
{[%clk 0:03:24.8]} 28. Rd1 {[%clk 0:02:27.1]} 28... Ne5 {[%clk 0:03:20.5]} 29.
Rd4 {[%clk 0:02:25]} 29... Nxc4 {[%clk 0:03:17.1]} 30. g3 {[%clk 0:02:17.5]}
30... f6 {[%clk 0:03:14]} 31. Rd7 {[%clk 0:02:11.1]} 31... a5 {[%clk 0:03:09.4]}
32. Rd4 {[%clk 0:02:04.8]} 32... Ne5 {[%clk 0:03:06.9]} 33. Kg2 {[%clk
0:02:01.7]} 33... Rxc3 {[%clk 0:03:04.8]} 34. Rd8+ {[%clk 0:01:59.3]} 34... Kf7
{[%clk 0:03:04.5]} 35. Rb8 {[%clk 0:01:53.8]} 35... Rb3 {[%clk 0:03:00.7]} 36.
Rh8 {[%clk 0:01:46.6]} 36... h6 {[%clk 0:02:59.1]} 0-1

[Event "Live Chess"]
[Site "Chess.com"]
[Date "2023.05.20"]
[Round "-"]
[White "HugeManAmin"]
[Black "TobyQuaite"]
[Result "0-1"]
[WhiteElo "1349"]
[BlackElo "1693"]
[TimeControl "300"]
[EndTime "12:25:05 PDT"]
[Termination "TobyQuaite won by resignation"]

1. e4 {[%clk 0:04:58.9]} 1... e6 {[%clk 0:04:59]} 2. Nf3 {[%clk 0:04:56.1]} 2...
d5 {[%clk 0:04:58.1]} 3. exd5 {[%clk 0:04:47.3]} 3... exd5 {[%clk 0:04:58]} 4.
d4 {[%clk 0:04:45.8]} 4... Nf6 {[%clk 0:04:57.6]} 5. Nc3 {[%clk 0:04:43.8]} 5...
Bd6 {[%clk 0:04:56.6]} 6. Bg5 {[%clk 0:04:38.2]} 6... c6 {[%clk 0:04:56.1]} 7.
Qe2+ {[%clk 0:04:35.3]} 7... Be6 {[%clk 0:04:54.3]} 8. O-O-O {[%clk 0:04:29.9]}
8... h6 {[%clk 0:04:53.1]} 9. Bh4 {[%clk 0:04:28]} 9... Nbd7 {[%clk 0:04:52.1]}
10. Re1 {[%clk 0:03:51.7]} 10... Bb4 {[%clk 0:04:47.5]} 11. a3 {[%clk
0:03:47.6]} 11... Bxc3 {[%clk 0:04:46]} 12. bxc3 {[%clk 0:03:45.6]} 12... Qa5
{[%clk 0:04:42.9]} 0-1

[Event "Live Chess"]
[Site "Chess.com"]
[Date "2023.05.20"]
[Round "-"]
[White "ramses-IIG"]
[Black "DmitryVasliev"]
[Result "1-0"]
[WhiteElo "810"]
[BlackElo "1661"]
[TimeControl "300"]
[EndTime "12:25:07 PDT"]
[Termination "ramses-IIG won by resignation"]

1. e4 {[%clk 0:04:58.6]} 1... d6 {[%clk 0:04:57.5]} 2. Nf3 {[%clk 0:04:58.5]}
2... c6 {[%clk 0:04:55.1]} 3. d4 {[%clk 0:04:57]} 3... h6 {[%clk 0:04:53.5]} 4.
Bc4 {[%clk 0:04:54.4]} 4... Nd7 {[%clk 0:04:50.4]} 5. Bb3 {[%clk 0:04:53.2]}
5... g5 {[%clk 0:04:47.5]} 6. c3 {[%clk 0:04:52.3]} 6... Bg7 {[%clk 0:04:46.6]}
7. O-O {[%clk 0:04:48.8]} 7... e5 {[%clk 0:04:45]} 8. d5 {[%clk 0:04:46.9]} 8...
c5 {[%clk 0:04:43.5]} 9. Nbd2 {[%clk 0:04:44.1]} 9... Nf8 {[%clk 0:04:41.5]} 10.
Nc4 {[%clk 0:04:42.9]} 10... Ng6 {[%clk 0:04:40.3]} 11. Ba4+ {[%clk 0:04:38.2]}
11... Bd7 {[%clk 0:04:38.6]} 12. Bxd7+ {[%clk 0:04:35]} 12... Qxd7 {[%clk
0:04:36.7]} 13. Qb3 {[%clk 0:04:08.3]} 13... b5 {[%clk 0:04:32.2]} 14. Ne3
{[%clk 0:03:48]} 14... N8e7 {[%clk 0:04:29.2]} 15. Qc2 {[%clk 0:03:41.2]} 15...
Nf4 {[%clk 0:04:13.8]} 16. b3 {[%clk 0:03:30.8]} 16... Bf6 {[%clk 0:04:10]} 17.
g3 {[%clk 0:03:28.3]} 17... Qg4 {[%clk 0:04:03.2]} 18. Nxg4 {[%clk 0:03:23.8]}
1-0

[Event "Live Chess"]
[Site "Chess.com"]
[Date "2023.05.20"]
[Round "-"]
[White "MJMykh"]
[Black "Balu13"]
[Result "0-1"]
[WhiteElo "987"]
[BlackElo "842"]
[TimeControl "300"]
[EndTime "12:25:08 PDT"]
[Termination "Balu13 won by checkmate"]

1. e4 {[%clk 0:04:57.9]} 1... d5 {[%clk 0:04:59.3]} 2. exd5 {[%clk 0:04:55.8]}
2... Qxd5 {[%clk 0:04:59.2]} 3. Nc3 {[%clk 0:04:55.7]} 3... Qa5 {[%clk
0:04:58.1]} 4. Bb5+ {[%clk 0:04:52.8]} 4... c6 {[%clk 0:04:47.6]} 5. Bc4 {[%clk
0:04:51.3]} 5... Nf6 {[%clk 0:04:41]} 6. Nf3 {[%clk 0:04:48.4]} 6... Bg4 {[%clk
0:04:35.4]} 7. O-O {[%clk 0:04:46]} 7... e5 {[%clk 0:04:15.7]} 8. d3 {[%clk
0:04:37]} 8... Nbd7 {[%clk 0:03:50.5]} 9. Bd2 {[%clk 0:04:31.8]} 9... Bb4 {[%clk
0:03:37.6]} 10. h3 {[%clk 0:04:27.5]} 10... Bh5 {[%clk 0:03:29.7]} 11. a3 {[%clk
0:04:21.6]} 11... Bxc3 {[%clk 0:03:22.6]} 12. Bxc3 {[%clk 0:04:20.7]} 12... Qc7
{[%clk 0:03:11.5]} 13. Re1 {[%clk 0:04:13.9]} 13... O-O-O {[%clk 0:03:05.7]} 14.
Bb4 {[%clk 0:03:57.4]} 14... Nb6 {[%clk 0:02:55.1]} 15. Ba5 {[%clk 0:03:50.5]}
15... e4 {[%clk 0:02:48.5]} 16. Bxb6 {[%clk 0:03:44.8]} 16... axb6 {[%clk
0:02:45.1]} 17. Qe2 {[%clk 0:03:31.6]} 17... exf3 {[%clk 0:02:30.4]} 18. gxf3
{[%clk 0:03:31.4]} 18... Qf4 {[%clk 0:02:19.7]} 19. Kg2 {[%clk 0:03:11.2]} 19...
Qg5+ {[%clk 0:02:03]} 20. Kh2 {[%clk 0:03:06.6]} 20... Rhe8 {[%clk 0:01:40.4]}
21. Rg1 {[%clk 0:02:37.3]} 21... Qf4+ {[%clk 0:01:31.5]} 22. Rg3 {[%clk
0:02:21.5]} 22... Rxe2 {[%clk 0:01:29.7]} 23. Kg2 {[%clk 0:02:13.4]} 23... b5
{[%clk 0:00:51.7]} 24. Bb3 {[%clk 0:02:08.7]} 24... c5 {[%clk 0:00:44.9]} 25.
Ba2 {[%clk 0:01:50.3]} 25... Rxc2 {[%clk 0:00:40.5]} 26. Rb1 {[%clk 0:01:45.9]}
26... Rxd3 {[%clk 0:00:34.4]} 27. Rxg7 {[%clk 0:01:28.1]} 27... Qxf3+ {[%clk
0:00:27.5]} 28. Kg1 {[%clk 0:01:09]} 28... Qxf2+ {[%clk 0:00:26.5]} 29. Kh1
{[%clk 0:01:03.9]} 29... Qh2# {[%clk 0:00:26.1]} 0-1

[Event "Live Chess"]
[Site "Chess.com"]
[Date "2023.05.20"]
[Round "-"]
[White "manthanit"]
[Black "JohanKjeldahl"]
[Result "1-0"]
[WhiteElo "980"]
[BlackElo "1776"]
[TimeControl "300"]
[EndTime "12:25:10 PDT"]
[Termination "manthanit won by checkmate"]

1. e4 {[%clk 0:04:58.3]} 1... Nc6 {[%clk 0:04:57]} 2. d4 {[%clk 0:04:55.7]} 2...
d5 {[%clk 0:04:55.2]} 3. Nc3 {[%clk 0:04:53.1]} 3... dxe4 {[%clk 0:04:52.9]} 4.
Nxe4 {[%clk 0:04:51.9]} 4... Nf6 {[%clk 0:04:51]} 5. Nxf6+ {[%clk 0:04:50.5]}
5... gxf6 {[%clk 0:04:47.3]} 6. Nf3 {[%clk 0:04:47.8]} 6... Bf5 {[%clk
0:04:43.6]} 7. Bb5 {[%clk 0:04:45.3]} 7... Qd5 {[%clk 0:04:38.9]} 8. Bxc6+
{[%clk 0:04:41.7]} 8... Qxc6 {[%clk 0:04:36.8]} 9. c3 {[%clk 0:04:37.1]} 9...
O-O-O {[%clk 0:04:35.6]} 10. O-O {[%clk 0:04:35.9]} 10... e5 {[%clk 0:04:34.2]}
11. Be3 {[%clk 0:04:29.9]} 11... e4 {[%clk 0:04:28.3]} 12. Nh4 {[%clk
0:04:26.7]} 12... Bg6 {[%clk 0:04:27.1]} 13. Rc1 {[%clk 0:04:21.4]} 13... f5
{[%clk 0:04:21.4]} 14. f3 {[%clk 0:04:20.4]} 14... Be7 {[%clk 0:04:15.9]} 15.
Nxg6 {[%clk 0:04:18.2]} 15... hxg6 {[%clk 0:04:12.4]} 16. fxe4 {[%clk
0:04:17.2]} 16... Qxe4 {[%clk 0:04:08.9]} 17. Bf4 {[%clk 0:04:13]} 17... Rh4
{[%clk 0:03:57.8]} 18. Bg3 {[%clk 0:04:06.8]} 18... Qe3+ {[%clk 0:03:55]} 19.
Bf2 {[%clk 0:04:04.5]} 19... Qh6 {[%clk 0:03:47.4]} 20. Bxh4 {[%clk 0:04:02.5]}
20... Qxh4 {[%clk 0:03:45.9]} 21. Qf3 {[%clk 0:04:00.2]} 21... Rh8 {[%clk
0:03:41.8]} 22. h3 {[%clk 0:03:57.5]} 22... Bg5 {[%clk 0:03:35.9]} 23. Rce1
{[%clk 0:03:55.1]} 23... Qh6 {[%clk 0:03:26.2]} 24. Re2 {[%clk 0:03:52.6]} 24...
Bf6 {[%clk 0:03:17.5]} 25. Rfe1 {[%clk 0:03:29.2]} 25... f4 {[%clk 0:03:09.9]}
26. Re8+ {[%clk 0:03:26.5]} 26... Rxe8 {[%clk 0:03:05.7]} 27. Rxe8+ {[%clk
0:03:25]} 27... Kd7 {[%clk 0:03:04.5]} 28. Re4 {[%clk 0:03:13.4]} 28... g5
{[%clk 0:03:02.2]} 29. Kh2 {[%clk 0:03:09.9]} 29... Be7 {[%clk 0:02:55]} 30. Qe2
{[%clk 0:03:02.3]} 30... Bd6 {[%clk 0:02:52.1]} 31. Kh1 {[%clk 0:02:59.4]} 31...
f5 {[%clk 0:02:46.9]} 32. Re8 {[%clk 0:02:51.7]} 32... c6 {[%clk 0:02:34.1]} 33.
c4 {[%clk 0:02:47.8]} 33... g4 {[%clk 0:02:21.9]} 34. c5 {[%clk 0:02:43.5]}
34... f3 {[%clk 0:02:16.8]} 35. gxf3 {[%clk 0:02:41]} 35... Qxh3+ {[%clk
0:02:14.8]} 36. Kg1 {[%clk 0:02:30.8]} 36... Qg3+ {[%clk 0:02:13.2]} 37. Kf1
{[%clk 0:02:28.9]} 37... Qh3+ {[%clk 0:02:06.2]} 38. Ke1 {[%clk 0:02:26.4]}
38... Bg3+ {[%clk 0:01:48.2]} 39. Kd1 {[%clk 0:02:25.2]} 39... Qh1+ {[%clk
0:01:44.2]} 40. Kc2 {[%clk 0:02:23.6]} 40... Qh6 {[%clk 0:01:38]} 41. Qe7#
{[%clk 0:02:17.3]} 1-0

[Event "Live Chess"]
[Site "Chess.com"]
[Date "2023.05.20"]
[Round "-"]
[White "Tilbs_12"]
[Black "mightysmasher"]
[Result "0-1"]
[WhiteElo "1560"]
[BlackElo "2105"]
[TimeControl "300"]
[EndTime "12:25:21 PDT"]
[Termination "mightysmasher won on time"]

1. e4 {[%clk 0:04:54.6]} 1... e6 {[%clk 0:04:58.3]} 2. d4 {[%clk 0:04:52.1]}
2... d5 {[%clk 0:04:57]} 3. e5 {[%clk 0:04:50.2]} 3... c5 {[%clk 0:04:55.9]} 4.
c3 {[%clk 0:04:48.6]} 4... Nc6 {[%clk 0:04:54.9]} 5. Nf3 {[%clk 0:04:47.4]} 5...
Qb6 {[%clk 0:04:53.7]} 6. Bd3 {[%clk 0:04:46.7]} 6... Bd7 {[%clk 0:04:51.9]} 7.
O-O {[%clk 0:04:44.7]} 7... Rc8 {[%clk 0:04:49.9]} 8. Re1 {[%clk 0:04:42.8]}
8... Nh6 {[%clk 0:04:47.1]} 9. a3 {[%clk 0:04:27.2]} 9... Ng4 {[%clk 0:04:44.2]}
10. b4 {[%clk 0:04:22.2]} 10... cxb4 {[%clk 0:04:41.4]} 11. axb4 {[%clk
0:04:20.7]} 11... a5 {[%clk 0:04:38.1]} 12. h3 {[%clk 0:04:11.2]} 12... Nh6
{[%clk 0:04:36.3]} 13. b5 {[%clk 0:04:06.4]} 13... Na7 {[%clk 0:04:34.3]} 14.
Na3 {[%clk 0:03:56.1]} 14... Bxa3 {[%clk 0:04:30]} 15. Bxa3 {[%clk 0:03:54.6]}
15... Nxb5 {[%clk 0:04:27.1]} 16. Bc5 {[%clk 0:03:51.8]} 16... Qc6 {[%clk
0:04:26.2]} 17. Rxa5 {[%clk 0:03:31.2]} 17... Nxc3 {[%clk 0:04:24.2]} 18. Qb3
{[%clk 0:03:23.9]} 18... Ne4 {[%clk 0:04:20]} 19. Bxe4 {[%clk 0:03:22.1]} 19...
dxe4 {[%clk 0:04:18.8]} 20. Nd2 {[%clk 0:03:18.6]} 20... b6 {[%clk 0:04:17.9]}
21. Bxb6 {[%clk 0:03:14.9]} 21... Rb8 {[%clk 0:04:15.6]} 22. Nc4 {[%clk
0:03:10.9]} 22... O-O {[%clk 0:04:13.3]} 23. Rc5 {[%clk 0:03:07.8]} 23... Qb7
{[%clk 0:04:09.8]} 24. Rb1 {[%clk 0:03:03.1]} 24... Qa6 {[%clk 0:04:08]} 25. Nd6
{[%clk 0:02:52]} 25... Nf5 {[%clk 0:04:01.7]} 26. Nxf5 {[%clk 0:02:44.8]} 26...
exf5 {[%clk 0:03:59.9]} 27. d5 {[%clk 0:02:23.1]} 27... f4 {[%clk 0:03:52.7]}
28. Rc7 {[%clk 0:02:21.9]} 28... Bf5 {[%clk 0:03:50.6]} 29. Rb2 {[%clk
0:02:14.6]} 29... e3 {[%clk 0:03:48.7]} 30. fxe3 {[%clk 0:02:09.1]} 30... fxe3
{[%clk 0:03:46.9]} 31. Qxe3 {[%clk 0:02:07.8]} 31... Qa1+ {[%clk 0:03:44.5]} 32.
Qc1 {[%clk 0:01:55.2]} 32... Qa6 {[%clk 0:03:42.7]} 33. Qc5 {[%clk 0:01:28.5]}
33... Qa1+ {[%clk 0:03:38.1]} 34. Qc1 {[%clk 0:01:27.2]} 34... Qa6 {[%clk
0:03:21]} 35. Rc6 {[%clk 0:01:14.5]} 35... Rfc8 {[%clk 0:03:17.2]} 36. Rxc8+
{[%clk 0:01:06]} 36... Rxc8 {[%clk 0:03:14.7]} 37. Qe1 {[%clk 0:00:39.7]} 37...
Qd3 {[%clk 0:03:07.5]} 38. d6 {[%clk 0:00:33.7]} 38... Qd5 {[%clk 0:03:03.4]}
39. Rd2 {[%clk 0:00:31.4]} 39... Qc6 {[%clk 0:03:01.9]} 40. Bc7 {[%clk
0:00:30.1]} 40... Be6 {[%clk 0:02:59.5]} 41. g4 {[%clk 0:00:26.8]} 41... h6
{[%clk 0:02:57.5]} 42. Kh2 {[%clk 0:00:26.3]} 42... Qa4 {[%clk 0:02:54.3]} 43.
Kg3 {[%clk 0:00:25.5]} 43... Qb3+ {[%clk 0:02:52.1]} 44. Kf2 {[%clk 0:00:23.5]}
44... Qxh3 {[%clk 0:02:50.1]} 45. d7 {[%clk 0:00:21.9]} 45... Bxd7 {[%clk
0:02:48.8]} 46. Rxd7 {[%clk 0:00:19.9]} 46... Qxg4 {[%clk 0:02:47.2]} 47. Rd8+
{[%clk 0:00:18.7]} 47... Rxd8 {[%clk 0:02:45.4]} 48. Bxd8 {[%clk 0:00:18.2]}
48... Qd4+ {[%clk 0:02:44.6]} 49. Qe3 {[%clk 0:00:16.5]} 49... Qxd8 {[%clk
0:02:43.8]} 50. Kf3 {[%clk 0:00:16.4]} 50... Qh4 {[%clk 0:02:41.4]} 51. e6
{[%clk 0:00:13.7]} 51... Qh3+ {[%clk 0:02:40.3]} 52. Kf4 {[%clk 0:00:12.7]}
52... g5+ {[%clk 0:02:37.6]} 53. Ke4 {[%clk 0:00:11.4]} 53... Qxe6+ {[%clk
0:02:36.8]} 54. Kd3 {[%clk 0:00:10.1]} 54... Qxe3+ {[%clk 0:02:36]} 55. Kxe3
{[%clk 0:00:10]} 55... f5 {[%clk 0:02:35.3]} 56. Kf3 {[%clk 0:00:09.1]} 56...
Kf7 {[%clk 0:02:34.2]} 0-1

[Event "Live Chess"]
[Site "Chess.com"]
[Date "2023.05.20"]
[Round "-"]
[White "lateforthesky"]
[Black "ElectricFalcon"]
[Result "1-0"]
[WhiteElo "2089"]
[BlackElo "1071"]
[TimeControl "300"]
[EndTime "12:25:34 PDT"]
[Termination "lateforthesky won by resignation"]

1. e4 {[%clk 0:04:58.9]} 1... e5 {[%clk 0:04:59.3]} 2. Nf3 {[%clk 0:04:56.8]}
2... Nc6 {[%clk 0:04:59]} 3. Bb5 {[%clk 0:04:55.4]} 3... Nf6 {[%clk 0:04:56.2]}
4. d3 {[%clk 0:04:53.9]} 4... Bc5 {[%clk 0:04:54.7]} 5. O-O {[%clk 0:04:51.2]}
5... O-O {[%clk 0:04:53.1]} 6. c3 {[%clk 0:04:50.2]} 6... d6 {[%clk 0:04:52.1]}
7. h3 {[%clk 0:04:47.5]} 7... Bd7 {[%clk 0:04:51.1]} 8. Nbd2 {[%clk 0:04:43.9]}
8... a6 {[%clk 0:04:48.6]} 9. Ba4 {[%clk 0:04:42.1]} 9... b5 {[%clk 0:04:48]}
10. Bb3 {[%clk 0:04:40.4]} 10... Bb6 {[%clk 0:04:47.3]} 11. Re1 {[%clk
0:04:36.3]} 11... a5 {[%clk 0:04:45.7]} 12. Nf1 {[%clk 0:04:31.2]} 12... a4
{[%clk 0:04:42.6]} 13. Bc2 {[%clk 0:04:30]} 13... Ne7 {[%clk 0:04:37.3]} 14. d4
{[%clk 0:04:26.2]} 14... Ng6 {[%clk 0:04:34.2]} 15. Ng3 {[%clk 0:04:22.5]} 15...
c5 {[%clk 0:04:22]} 16. dxe5 {[%clk 0:04:03.9]} 16... Nxe5 {[%clk 0:04:15.9]}
17. Nxe5 {[%clk 0:04:00.7]} 17... dxe5 {[%clk 0:04:13.3]} 18. Bg5 {[%clk
0:03:59.4]} 18... Be6 {[%clk 0:04:01.8]} 19. Qf3 {[%clk 0:03:36.5]} 19... Qe7
{[%clk 0:03:59.1]} 20. Nh5 {[%clk 0:03:33.7]} 20... h6 {[%clk 0:03:49.1]} 21.
Nxf6+ {[%clk 0:03:30.1]} 21... gxf6 {[%clk 0:03:48]} 22. Bxf6 {[%clk 0:03:28.9]}
22... Qd6 {[%clk 0:03:26.4]} 23. Qg3+ {[%clk 0:03:26]} 1-0